bitfinex/quotes_ETHUSD_20250411
["timestamp","ask_amount","ask_price","bid_price","bid_amount"]
[1744377029593,7.286,1555.2,1555.0,6.4307]
[1744377029999,7.286,1555.2,1555.1,6.43045]
[1744377031718,7.286,1555.4,1555.2,6.42984]
[1744377031866,0.72641397,1555.5,1555.2,6.42984]
[1744377032067,7.286,1555.4,1555.1,6.43034]
[1744377032263,7.286,1555.4,1555.1,12.86066]
[1744377032494,7.35023361,1555.4,1555.1,12.86066]
[1744377032697,7.35023361,1555.4,1555.2,6.43]
[1744377033098,7.286,1555.4,1555.2,7.22609]
[1744377033403,0.06423361,1555.5,1555.3,6.42962]
[1744377033699,63.00618,1555.7,1555.5,6.42879]
[1744377033700,57.436,1555.7,1555.5,6.42879]
[1744377033895,7.286,1555.7,1555.6,6.42838]
[1744377034469,0.06423361,1555.9,1555.7,6.42795]
[1744377034797,7.285,1555.9,1555.8,6.42756]
[1744377034967,0.06423361,1556.1,1555.6,4.32863353]
[1744377035167,0.06423361,1556.1,1555.3,3.48714197]
[1744377035168,12.85554,1555.8,1555.4,6.42909]
[1744377035477,13.77731361,1555.7,1555.4,6.42909]
[1744377035680,13.77731361,1555.7,1555.3,10.1945]
[1744377035681,20.14127,1555.7,1555.3,10.1945]
[1744377035873,7.285,1555.7,1555.2,6.42991]
[1744377036101,6.42895,1555.5,1555.2,6.42991]
[1744377036398,0.06423361,1555.5,1555.3,6.42941]
[1744377036605,0.06423361,1555.5,1555.2,8.092493]
[1744377036775,6.49338361,1555.5,1555.1,7.19523]
[1744377036981,6.42991,1555.3,1554.9,6.43114]
[1744377037181,0.06423361,1555.2,1554.9,12.86228]
[1744377037377,0.06423361,1555.2,1555.0,6.43059]
[1744377037583,7.342,1555.3,1555.2,6.43004]
[1744377038180,7.342,1555.3,1555.1,0.7706]
[1744377038499,6.43156,1554.9,1554.5,0.7851]
[1744377038675,0.06423361,1554.8,1554.5,7.21782]
[1744377038879,0.06423361,1554.8,1554.5,11.54645353]
[1744377039076,0.06423361,1554.8,1554.5,7.21782]
[1744377039505,0.06423361,1554.8,1554.5,13.65063]
[1744377039689,0.06423361,1554.8,1554.5,7.21782]
[1744377040002,0.06423361,1554.8,1554.5,13.65061]
[1744377040203,6.49621361,1554.8,1554.5,0.7851]
[1744377040504,6.49619361,1554.8,1554.5,7.2179]
[1744377041003,12.92806361,1554.8,1554.5,7.2179]
[1744377041198,6.49610361,1554.8,1554.5,13.65071]
[1744377041399,7.341,1554.9,1554.6,6.43239]
[1744377041609,6.49611361,1554.8,1554.5,7.21791]
[1744377041795,6.43223,1554.7,1554.5,0.7851]
[1744377041995,0.06423361,1554.6,1554.3,7.73854242]
[1744377042195,12.86544,1554.6,1554.3,7.25657]
[1744377042406,12.86544,1554.6,1554.3,0.8229]
[1744377042407,6.43314,1554.5,1554.3,0.8229]
[1744377042701,6.43314,1554.5,1554.4,6.43335]
[1744377042702,7.342,1554.5,1554.4,6.43335]
[1744377042905,7.342,1554.6,1554.4,6.43335]
[1744377043271,6.43293,1554.5,1554.3,3.8229]
[1744377043474,0.06423361,1554.4,1554.2,3.0]
[1744377043903,0.06423361,1554.4,1554.2,9.43412]
[1744377044110,7.342,1554.5,1554.3,12.86752]
[1744377044401,6.49787361,1554.4,1554.1,7.2621]
[1744377044584,6.43388,1554.3,1554.0,6.43488]
[1744377044782,0.06423361,1554.2,1554.0,6.43488]
[1744377044986,6.43474,1554.1,1553.8,7.24501]
[1744377045303,0.06423361,1554.0,1553.8,7.24488]
[1744377045519,0.06423361,1554.1,1553.9,6.43542]
[1744377045809,0.06423361,1554.1,1553.8,0.8092]
[1744377045810,7.14838497,1554.2,1553.8,10.24484]
[1744377046023,7.14838497,1554.2,1553.9,6.43523]
[1744377046175,13.7778,1554.3,1554.0,6.43476]
[1744377046375,0.06423361,1554.2,1553.9,6.43532]
[1744377046605,0.06423361,1554.2,1554.0,6.43499]
[1744377047102,13.7778,1554.3,1554.0,12.86985]
[1744377047277,0.06423361,1554.2,1553.9,6.43534]
[1744377047477,0.06423361,1554.2,1553.9,6.43527]
[1744377047677,6.49845361,1554.2,1553.9,6.43527]
[1744377047877,6.49845361,1554.2,1553.9,12.87057]
[1744377048205,0.06423361,1554.2,1553.9,12.87057]
[1744377048414,0.06423361,1554.2,1554.0,6.43499]
[1744377048777,0.06423361,1554.2,1553.9,6.43527]
[1744377048989,0.06423361,1554.2,1554.0,6.435]
[1744377049190,7.344,1554.3,1554.0,12.86988]
[1744377049391,7.40823361,1554.3,1554.1,12.86895]
[1744377049588,7.40823361,1554.3,1554.1,12.86893]
[1744377049791,7.40823361,1554.4,1554.1,12.86892]
[1744377050198,13.84158361,1554.4,1554.1,6.43446]
[1744377050512,13.77735,1554.4,1554.1,12.86894]
[1744377050709,7.344,1554.4,1554.3,6.43376]
[1744377051209,7.344,1554.4,1554.2,0.8307]
[1744377051391,6.49799361,1554.3,1554.0,16.65492]
[1744377051911,0.06423361,1554.3,1554.0,16.65492]
[1744377052108,6.43472,1554.1,1553.8,7.21851]
[1744377052307,6.43472,1554.1,1553.8,6.43572]
[1744377052512,12.93367361,1554.1,1553.8,6.43572]
[1744377052700,6.49895361,1554.1,1553.8,6.43572]
[1744377052900,0.06423361,1554.1,1553.9,6.43507]
[1744377053209,6.43491,1554.1,1553.8,3.0]
[1744377053393,0.06423361,1554.0,1553.8,3.0]
[1744377053614,13.51957436,1554.1,1553.8,9.43583]
[1744377053979,7.08466436,1554.1,1553.8,9.43583]
[1744377054185,6.43518,1554.0,1553.6,6.43654]
[1744377054385,0.06423361,1553.9,1553.7,3.0]
[1744377055586,0.06423361,1553.9,1553.6,3.0]
[1744377055807,0.06423361,1553.9,1553.7,12.8721]
[1744377056204,0.06423361,1553.9,1553.8,6.43583]
[1744377056421,7.40823361,1554.0,1553.8,6.43569]
[1744377057421,7.345,1554.3,1553.9,0.8264]
[1744377057592,7.345,1554.3,1554.1,6.43448]
[1744377057796,7.345,1554.3,1554.0,6.43487]
[1744377057995,13.77891,1554.3,1553.9,13.69714]
[1744377058197,0.1291,1554.5,1553.9,7.2617]
[1744377058420,6.43445,1554.2,1553.8,6.4357]
[1744377058730,6.49888361,1554.1,1553.8,6.4357]
[1744377059029,6.43501,1554.0,1553.7,7.25111]
[1744377059198,0.06423361,1553.9,1553.7,7.25111]
[1744377059399,0.06423361,1553.9,1553.7,13.68723]
[1744377059594,0.06423361,1553.9,1553.7,0.815]
[1744377060008,0.06423361,1553.9,1553.7,7.25113]
[1744377060325,0.06423361,1554.1,1553.9,6.43527]
[1744377060497,0.1291,1554.3,1554.0,6.43478]
[1744377060699,0.06423361,1554.3,1554.1,6.43439]
[1744377061115,7.345,1554.4,1554.1,12.86881]
[1744377061403,7.345,1554.4,1554.2,6.43404]
[1744377061594,8.0795,1554.4,1554.1,12.8689]
[1744377062038,8.14373361,1554.4,1554.1,6.43445]
[1744377062341,14.57719361,1554.4,1554.1,12.86891]
[1744377062498,8.0795,1554.4,1554.0,1.25685503]
[1744377062698,0.06423361,1554.5,1554.2,6.434]
[1744377062918,0.06423361,1554.6,1554.4,6.43324]
[1744377063126,0.06423361,1554.8,1554.6,6.43252]
[1744377063326,6.62471361,1554.9,1554.6,6.43252]
[1744377063847,6.43248,1554.7,1554.4,0.7761]
[1744377064015,6.43293,1554.5,1554.2,6.43404]
[1744377064213,0.06423361,1554.4,1554.1,13.68122]
[1744377064548,6.43293,1554.5,1554.2,12.86803]
[1744377064844,6.43172,1554.8,1554.1,0.8123]
[1744377064845,0.1291,1554.8,1554.4,6.43316]
[1744377065047,6.49659361,1554.7,1554.3,12.86728]
[1744377065204,7.15916297,1554.7,1554.4,6.43333]
[1744377065604,13.59142297,1554.7,1554.4,6.43333]
[1744377065805,12.86574,1554.6,1554.2,12.86811]
[1744377066017,0.06423361,1554.5,1554.2,6.43405]
[1744377066254,6.49731361,1554.5,1554.1,11.57544353]
[1744377066415,7.40923361,1554.5,1554.1,5.14093353]
[1744377066645,6.43335,1554.4,1554.1,0.8123]
[1744377066937,0.06423361,1554.3,1554.1,3.0]
[1744377067102,7.4881,1554.8,1554.2,0.7553]
[1744377067434,12.86535,1554.6,1554.2,7.18946]
[1744377067615,0.06423361,1554.6,1554.3,6.43372]
[1744377067931,0.06423361,1554.6,1554.3,12.86744]
[1744377068150,0.06423361,1554.7,1554.3,5.69734112]
[1744377068305,6.49609361,1554.8,1554.4,12.86626]
[1744377068506,0.06423361,1554.8,1554.5,12.86532]
[1744377068733,6.49605361,1554.8,1554.4,6.43321]
[1744377069034,6.4323,1554.7,1554.4,6.43321]
[1744377069224,6.49600361,1554.8,1554.4,13.34694623]
[1744377069427,6.43356,1554.4,1554.2,0.7553]
[1744377069633,6.43378,1554.3,1554.0,9.43494]
[1744377069831,6.43428,1554.2,1554.0,3.0]
[1744377070451,12.93221361,1554.3,1553.9,13.63806]
[1744377070954,6.43475,1554.1,1553.7,9.04568298]
[1744377071174,12.93453361,1554.0,1553.6,12.8731]
[1744377071304,6.49924361,1554.0,1553.6,6.43655]
[1744377071504,6.49924361,1554.0,1553.7,6.43611]
[1744377071505,0.06423361,1554.0,1553.7,6.43611]
[1744377072207,6.49950361,1554.0,1553.6,6.43654]
[1744377072477,6.43605,1553.8,1553.5,0.7585]
[1744377072757,12.87384,1553.6,1553.2,13.35252448]
[1744377072925,0.06423361,1553.5,1553.2,6.43818]
[1744377073252,0.06423361,1553.5,1553.3,3.0]
[1744377073447,0.06423361,1553.5,1553.2,6.43816]
[1744377073648,0.06423361,1553.5,1553.2,12.87634]
[1744377073853,0.06423361,1553.5,1553.2,14.97488735]
[1744377074055,6.50164361,1553.5,1553.1,7.21943]
[1744377074353,6.63074361,1553.5,1553.2,6.43822]
[1744377074556,6.4375,1553.4,1553.1,7.36376393]
[1744377074711,6.56634,1553.5,1553.1,7.21937]
[1744377074914,6.43768,1553.4,1553.1,0.14439393]
[1744377075110,6.56742,1553.2,1553.1,0.14439393]
[1744377075419,20.36596,1553.2,1553.0,0.08586757]
[1744377075613,6.50296361,1553.1,1553.0,0.08586757]
[1744377076413,0.06423361,1553.1,1553.0,0.08586757]
[1744377076613,0.1291,1553.2,1553.0,0.08586757]
[1744377076817,6.43873,1553.1,1553.0,0.08586757]
[1744377077018,0.06423361,1553.1,1553.0,0.08586757]
[1744377077220,0.06423361,1553.2,1553.0,6.52476757]
[1744377077425,6.50236361,1553.3,1553.0,0.08586757]
[1744377077710,7.42523361,1553.3,1553.0,1.49619633]
[1744377077918,6.50202361,1553.4,1553.0,7.28222757]
[1744377078117,6.50202361,1553.4,1553.0,7.28216757]
[1744377078319,6.43793,1553.3,1553.0,6.52486757]
[1744377078551,0.06423361,1553.2,1553.0,6.52486757]
[1744377078855,0.06423361,1553.2,1553.0,0.08586757]
[1744377079156,6.56756,1553.2,1553.0,0.08586757]
[1744377079327,7.15971961,1553.1,1553.0,0.08586757]
[1744377079526,7.15971961,1553.1,1552.9,0.005]
[1744377079527,6.43915,1553.0,1552.9,0.005]
[1744377079841,6.63248361,1553.0,1552.9,0.005]
[1744377080559,6.63248361,1553.0,1552.9,1e-05]
[1744377080560,10.18248361,1553.0,1552.9,1e-05]
[1744377081429,9.63248361,1553.0,1552.9,1e-05]
[1744377081623,11.94917257,1553.0,1552.9,1e-05]
[1744377082030,22.9178061,1553.0,1552.9,1e-05]
[1744377082228,9.43956,1552.9,1552.1,0.3925984]
[1744377082449,6.44156,1552.5,1552.1,0.3925984]
[1744377082756,13.87000361,1552.4,1552.1,0.3925984]
[1744377082915,7.364,1552.4,1552.1,6.8354284]
[1744377083115,0.06423361,1552.4,1552.2,6.44233]
[1744377083319,0.06423361,1552.5,1552.3,6.44205]
[1744377083548,0.06423361,1552.6,1552.4,6.44149]
[1744377083844,6.44095,1552.6,1552.2,6.44218]
[1744377084049,57.687,1552.8,1552.3,6.44191]
[1744377084050,0.06423361,1552.5,1552.3,6.44191]
[1744377084226,0.06423361,1552.7,1552.3,7.854001]
[1744377084427,12.94554361,1552.7,1552.3,7.20981]
[1744377084631,6.50480361,1552.7,1552.3,13.65173]
[1744377084923,0.06423361,1552.7,1552.4,6.44151]
[1744377085244,0.06423361,1552.9,1552.5,6.44122]
[1744377085444,6.50352361,1553.0,1552.6,10.25374]
[1744377085645,6.43961,1552.9,1552.6,3.813]
[1744377085847,6.43961,1552.9,1552.6,10.25378]
[1744377086039,12.94280361,1553.0,1552.7,6.44027]
[1744377086549,8.149756,1553.1,1552.7,6.44039]
[1744377086550,8.020756,1553.1,1552.7,6.44039]
[1744377086735,6.43915,1553.0,1552.7,6.44009]
[1744377087052,6.50338361,1553.0,1552.7,6.44027]
[1744377087350,0.06423361,1553.0,1552.6,0.813]
[1744377087529,6.44139,1552.5,1552.2,0.8193]
[1744377087730,6.44242,1552.3,1552.1,0.3925984]
[1744377088030,0.06423361,1552.2,1552.1,0.3925984]
[1744377088350,7.42923361,1552.2,1552.1,0.51337519]
[1744377088519,7.42923361,1552.2,1552.1,0.3925984]
[1744377089548,7.42923361,1552.2,1552.1,6.8354784]
[1744377089852,0.06423361,1552.3,1552.1,7.6520484]
[1744377090063,13.80781,1552.4,1552.1,7.6520284]
[1744377090270,13.80779,1552.4,1552.1,7.6520284]
[1744377090468,20.24962,1552.4,1552.1,7.6520284]
[1744377090764,0.06423361,1552.3,1552.1,7.6521684]
[1744377090919,7.366,1552.4,1552.2,6.44235]
[1744377091119,7.366,1552.4,1552.3,6.44205]
[1744377091338,7.366,1552.4,1552.2,6.44231]
[1744377091547,7.366,1552.4,1552.1,1.2092984]
[1744377091548,0.06423361,1552.3,1552.1,14.0948984]
[1744377091752,0.06423361,1552.3,1552.1,7.6520484]
[1744377091918,7.366,1552.4,1552.1,1.2092984]
[1744377092124,7.366,1552.4,1552.3,6.44205]
[1744377092321,13.80764,1552.4,1552.1,7.6519684]
[1744377092529,0.06423361,1552.3,1552.1,14.0947184]
[1744377092727,0.06423361,1552.3,1552.2,6.44246]
[1744377092927,7.366,1552.4,1552.3,6.44205]
[1744377093351,0.06423361,1552.6,1552.4,6.44149]
[1744377093721,7.89232797,1552.6,1552.3,6.44199]
[1744377093925,7.89232797,1552.6,1552.3,6.44202]
[1744377094120,0.06423361,1552.6,1552.4,6.44152]
[1744377094326,13.80745,1552.7,1552.5,6.44122]
[1744377094327,7.367,1552.7,1552.5,6.44122]
[1744377094565,7.43123361,1552.7,1552.5,6.44122]
[1744377094732,7.43123361,1552.7,1552.4,13.68628]
[1744377095171,7.43123361,1552.7,1552.5,6.44117]
[1744377095667,0.06423361,1552.7,1552.5,6.4411]
[1744377096035,0.06423361,1552.7,1552.5,12.88219]
[1744377096271,0.06423361,1552.7,1552.6,6.4408]
[1744377096429,13.87128361,1552.8,1552.5,6.44108]
[1744377096629,0.06423361,1552.7,1552.5,6.44108]
[1744377097263,0.06423361,1552.7,1552.3,12.88379]
[1744377097529,6.44084,1552.6,1552.3,6.44179]
[1744377097732,0.06423361,1552.5,1552.4,6.44163]
[1744377097932,0.06423361,1552.6,1552.4,6.44163]
[1744377098230,0.06423361,1552.7,1552.5,6.4411]
[1744377098856,0.06423361,1552.7,1552.6,6.4408]
[1744377099171,7.367,1552.8,1552.5,13.63858]
[1744377099369,7.43123361,1552.8,1552.6,6.44056]
[1744377099569,7.367,1552.8,1552.7,6.44039]
[1744377099863,7.367,1552.8,1552.6,6.44056]
[1744377100037,0.06423361,1552.9,1552.6,0.719686]
[1744377100237,0.06423361,1552.9,1552.7,6.44024]
[1744377100643,0.06423361,1552.9,1552.7,12.88049]
[1744377100881,0.129,1553.1,1552.8,6.43997]
[1744377101169,6.50320361,1553.1,1552.8,3.0]
[1744377101379,12.8787,1553.0,1552.7,3.7689]
[1744377101529,0.06423361,1553.0,1552.7,9.174216]
[1744377101844,6.50339361,1553.0,1552.7,7.20917]
[1744377102175,6.50339361,1553.0,1552.7,13.64943]
[1744377102469,12.94269361,1553.0,1552.7,7.20916]
[1744377102682,6.50339361,1553.0,1552.7,13.64944]
[1744377102981,6.56703,1553.3,1553.0,6.43905]
[1744377103136,0.06423361,1553.2,1552.9,6.43944]
[1744377103340,0.06423361,1553.2,1553.0,6.43907]
[1744377103658,6.50220361,1553.3,1553.0,7.2564]
[1744377103857,0.06423361,1553.3,1553.1,12.87715]
[1744377104060,8.071605,1553.7,1553.3,6.43753]
[1744377104061,0.06423361,1553.6,1553.3,6.43753]
[1744377104366,0.06423361,1553.6,1553.3,12.87529]
[1744377104562,21.073325,1553.7,1553.2,3.0]
[1744377104563,8.071605,1553.7,1553.4,7.22119]
[1744377104766,7.428,1553.7,1553.5,6.43675]
[1744377105257,6.43584,1553.8,1553.5,6.43707]
[1744377105453,7.735876,1553.8,1553.5,6.43707]
[1744377105654,7.735876,1553.8,1553.4,7.22128]
[1744377105853,0.06423361,1553.7,1553.5,6.43702]
[1744377106058,6.43492,1554.1,1553.5,6.43707]
[1744377106238,0.06423361,1554.0,1553.8,6.43576]
[1744377106591,0.06423361,1554.0,1553.7,6.43585]
[1744377106738,6.49938361,1554.0,1553.7,12.87196]
[1744377106939,6.43557,1553.9,1553.6,7.2346]
[1744377107135,0.06423361,1553.8,1553.5,6.43695]
[1744377107486,6.43625,1553.7,1553.4,7.22127]
[1744377107778,6.50024361,1553.8,1553.4,7.22122]
[1744377107980,6.50024361,1553.8,1553.5,6.43707]
[1744377108141,8.54941897,1553.8,1553.5,6.43707]
[1744377108335,8.54941897,1553.8,1553.4,7.22126]
[1744377108541,8.54941897,1553.8,1553.5,6.43694]
[1744377108742,20.42706,1553.9,1553.5,6.4367]
[1744377108942,0.06423361,1553.8,1553.5,12.87377]
[1744377109236,7.427,1553.9,1553.7,6.43611]
[1744377109476,6.43511,1554.0,1553.7,13.68144]
[1744377109770,12.93468361,1554.0,1553.7,0.8092]
[1744377110069,6.43545,1553.9,1553.7,0.8092]
[1744377110260,7.74147836,1554.0,1553.7,7.24544]
[1744377110442,6.49934361,1554.0,1553.7,7.24544]
[1744377110971,0.06423361,1554.0,1553.7,13.68168]
[1744377111152,6.49926361,1554.0,1553.7,7.24544]
[1744377111341,6.49926361,1554.0,1553.7,0.8092]
[1744377111541,12.87117,1553.9,1553.7,0.8092]
[1744377112074,12.87117,1553.9,1553.6,6.43658]
[1744377112075,12.87204,1553.8,1553.5,0.7879]
[1744377112981,6.43583,1553.8,1553.5,7.22495]
[1744377113148,6.43583,1553.8,1553.5,13.66179]
[1744377113343,6.43583,1553.8,1553.5,7.22484]
[1744377113874,12.87181,1553.8,1553.5,7.22484]
[1744377114073,6.43583,1553.8,1553.5,13.66179]
[1744377114273,6.43583,1553.8,1553.5,15.37567583]
[1744377114964,6.43626,1553.7,1553.5,2.50178583]
[1744377115167,6.43583,1553.8,1553.5,7.22487]
[1744377115374,6.49975361,1553.9,1553.5,7.22493]
[1744377115674,12.93544361,1553.9,1553.6,6.43642]
[1744377116063,0.129,1554.1,1553.5,3.7879]
[1744377116245,12.93377361,1554.1,1553.8,6.43578]
[1744377116447,6.56289,1554.3,1553.9,7.2385]
[1744377116676,0.06423361,1554.2,1554.0,6.43487]
[1744377116880,12.86779,1554.3,1554.0,6.43487]
[1744377117177,12.86779,1554.3,1553.9,13.6739]
[1744377117178,6.43418,1554.2,1553.9,13.6739]
[1744377117375,6.49812361,1554.3,1554.0,6.43498]
[1744377117550,6.43431,1554.2,1553.9,7.71416229]
[1744377117754,6.43431,1554.2,1553.9,8.91960309]
[1744377118091,6.49807361,1554.3,1553.9,2.48430309]
[1744377118384,20.29104,1554.4,1554.1,6.43439]
[1744377118543,6.43379,1554.3,1554.0,12.86992]
[1744377118742,6.43379,1554.3,1554.0,6.43496]
[1744377119279,12.86771,1554.3,1554.0,6.43496]
[1744377119458,12.86772,1554.3,1554.0,6.43496]
[1744377119658,13.85755,1554.4,1554.1,6.43446]
[1744377119842,6.43355,1554.4,1554.1,6.43446]
[1744377120044,6.43252,1554.6,1554.2,0.7507]
[1744377120350,7.424,1554.8,1554.5,6.43282]
[1744377120545,13.85569,1554.8,1554.5,7.18352]
[1744377120750,20.28771,1554.8,1554.5,0.7507]
[1744377120994,6.4331,1554.5,1554.3,0.7507]
[1744377121314,6.49733361,1554.5,1554.2,6.43402]
[1744377121578,0.06423361,1554.6,1554.1,7.909226]
[1744377121767,12.86626,1554.5,1554.1,7.909226]
[1744377121957,6.43353,1554.4,1554.1,3.8313]
[1744377122155,6.43378,1554.3,1554.1,0.8313]
[1744377122362,0.06423361,1554.4,1554.0,3.0]
[1744377122363,12.86853,1554.2,1554.0,3.0]
[1744377122553,6.43417,1554.2,1554.0,3.0]
[1744377122950,6.43461,1554.1,1553.9,4.23856229]
[1744377123248,0.19323361,1554.3,1553.9,10.7383103]
[1744377123454,12.93209361,1554.3,1554.0,6.43481]
[1744377123753,6.49811361,1554.3,1554.0,6.43495]
[1744377124196,0.06423361,1554.3,1554.1,6.43453]
[1744377124485,6.43383,1554.3,1554.0,6.43495]
[1744377124791,12.93209361,1554.3,1554.0,8.5798568]
[1744377125090,12.86776,1554.3,1554.0,8.5797968]
[1744377125299,6.49806361,1554.3,1554.0,8.5797968]
[1744377125792,6.43424,1554.2,1553.9,21.44943797]
[1744377125992,6.43417,1554.2,1553.9,1.23856229]
[1744377126203,6.43352,1554.4,1554.1,6.43457]
[1744377126490,1.49918297,1554.5,1554.0,6.43495]
[1744377126695,6.43396,1554.3,1554.0,6.43495]
[1744377126989,12.86802,1554.3,1554.0,8.2798598]
[1744377127298,12.86802,1554.3,1554.0,1.8449098]
[1744377127473,6.43422,1554.2,1554.0,1.8449098]
[1744377128372,0.06423361,1554.4,1554.0,1.8449098]
[1744377128570,0.06423361,1554.4,1553.9,12.01404797]
[1744377128773,6.43434,1554.2,1553.9,12.01404797]
[1744377129064,6.43389,1554.3,1553.9,12.01404797]
[1744377129262,6.43435,1554.2,1553.9,12.01404797]
[1744377129773,6.43433,1554.2,1553.9,18.44933797]
[1744377130099,6.43419,1554.2,1553.9,14.15898177]
[1744377130663,6.43386,1554.3,1553.9,1.23856229]
[1744377130664,6.435,1554.0,1553.9,1.23856229]
[1744377130866,6.43568,1553.9,1553.7,0.7918]
[1744377131066,12.87129,1553.9,1553.7,0.7918]
[1744377131462,6.43556,1553.9,1553.7,0.7918]
[1744377132063,6.43556,1553.9,1553.3,6.98783]
[1744377132064,6.43666,1553.6,1553.4,0.7819]
[1744377132268,0.06423361,1553.8,1553.4,0.7819]
[1744377132484,6.43671,1553.6,1553.4,3.7819]
[1744377132968,6.43666,1553.6,1553.4,5.88167257]
[1744377133194,6.43624,1553.7,1553.4,12.31913257]
[1744377133394,0.06423361,1553.9,1553.4,5.88167257]
[1744377133600,6.43688,1553.6,1553.4,3.7819]
[1744377133824,6.43614,1553.8,1553.5,10.77719568]
[1744377134093,12.87199,1553.8,1553.5,11.25462182]
[1744377134298,6.43628,1553.7,1553.5,4.81756182]
[1744377134493,6.43598,1553.8,1553.5,4.81756182]
[1744377134695,6.43595,1553.8,1553.5,12.758175]
[1744377134896,6.43719,1553.5,1553.2,7.52916358]
[1744377135097,6.4364,1553.7,1553.3,9.43757]
[1744377135285,6.4364,1553.7,1553.3,13.77781568]
[1744377135286,6.4368,1553.6,1553.3,13.77781568]
[1744377135903,6.4368,1553.6,1553.3,14.25928072]
[1744377136202,0.06423361,1553.7,1553.4,6.43721]
[1744377136366,6.43648,1553.7,1553.3,14.25953072]
[1744377136702,12.87299,1553.7,1553.4,7.86341307]
[1744377136999,6.43667,1553.6,1553.4,1.42595307]
[1744377137302,6.43667,1553.6,1553.3,14.25953072]
[1744377137999,6.43667,1553.6,1553.3,3.48146504]
[1744377138202,6.43708,1553.5,1553.2,7.2163]
[1744377138387,6.43724,1553.5,1553.2,7.2163]
[1744377138705,12.87447,1553.5,1553.2,9.51715247]
[1744377138998,6.35137243,1553.5,1553.2,15.95534247]
[1744377139304,6.35137243,1553.5,1553.2,15.95533247]
[1744377139503,12.93787361,1553.6,1553.2,15.95533247]
[1744377139906,6.50102361,1553.6,1553.3,6.43785]
[1744377140104,6.50102361,1553.6,1553.3,8.03334925]
[1744377140308,12.93791361,1553.6,1553.3,8.03334925]
[1744377141489,12.93791361,1553.6,1553.3,6.43785]
[1744377142605,6.50102361,1553.6,1553.3,12.8757]
[1744377142778,0.06423361,1553.8,1553.6,6.43645]
[1744377142973,6.62871361,1553.9,1553.6,12.87299]
[1744377143204,20.29238,1554.1,1553.7,6.43613]
[1744377143403,12.99683,1554.3,1553.9,6.43517]
[1744377143582,12.99683,1554.3,1553.7,11.54018568]
[1744377143583,6.43464,1554.1,1553.8,6.43559]
[1744377143982,6.49841361,1554.2,1553.7,5.10394568]
[1744377144314,6.43461,1554.1,1553.8,12.87145]
[1744377144482,0.129,1554.5,1554.0,6.435]
[1744377144678,12.93135361,1554.4,1554.1,6.43439]
[1744377144993,12.86791,1554.3,1554.0,0.752]
[1744377145197,6.49809361,1554.3,1554.0,0.752]
[1744377145400,6.49809361,1554.3,1554.0,7.18697]
[1744377145598,6.43485,1554.1,1553.7,15.87208]
[1744377145796,6.56327,1554.2,1553.9,6.43535]
[1744377146002,6.43352,1554.4,1554.0,6.435]
[1744377146231,6.49827361,1554.3,1554.0,6.43488]
[1744377146710,6.43465,1554.1,1553.8,0.754]
[1744377146911,6.43419,1554.2,1553.6,1.80029357]
[1744377147110,6.43707,1553.5,1553.2,7.66546503]
[1744377147282,6.43707,1553.5,1553.2,0.7527]
[1744377147478,6.43834,1553.2,1552.9,11.56071568]
[1744377147724,6.50213361,1553.3,1553.0,6.43899]
[1744377147936,6.43835,1553.2,1552.9,5.12134568]
[1744377148216,6.43981,1552.9,1552.6,0.7941]
[1744377148386,6.50435361,1552.8,1552.5,10.78123568]
[1744377148590,0.06423361,1553.0,1552.5,4.34024568]
[1744377148795,6.50308361,1553.1,1552.8,6.43966]
[1744377149198,0.06423361,1553.1,1552.8,6.43966]
[1744377149421,6.50316361,1553.1,1552.7,17.22088568]
[1744377149619,6.50316361,1553.1,1552.8,7.24615]
[1744377149782,0.06423361,1553.1,1552.8,13.68596]
[1744377149981,0.06423361,1553.2,1552.9,6.4395]
[1744377150208,0.129,1553.4,1552.9,6.4395]
[1744377150209,6.63082361,1553.4,1552.9,4.81859646]
[1744377150389,0.06423361,1553.4,1552.9,4.81859646]
[1744377150584,6.43829,1553.3,1552.9,17.21909568]
[1744377150788,13.61111336,1553.4,1553.0,6.43898]
[1744377150990,13.61123336,1553.4,1553.0,12.87794]
[1744377151190,13.73211,1553.5,1552.9,4.34024568]
[1744377151394,6.50172361,1553.4,1553.0,6.43915]
[1744377151614,0.06423361,1553.5,1553.2,7.21452]
[1744377151926,0.129,1553.8,1553.3,4.34024568]
[1744377152080,0.06423361,1553.8,1553.5,6.43688]
[1744377152285,12.62361575,1553.9,1553.6,6.4364]
[1744377152485,6.18811575,1553.9,1553.7,6.43595]
[1744377152933,6.18811575,1553.9,1553.7,11.26887527]
[1744377153141,6.18811575,1553.9,1553.8,6.43583]
[1744377154010,6.18811575,1553.9,1553.7,17.21226568]
[1744377154209,6.18811575,1553.9,1553.6,0.7647]
[1744377154210,6.18811575,1553.9,1553.6,6.43658]
[1744377154395,6.18811575,1553.9,1553.6,12.87316]
[1744377154601,6.49938361,1554.0,1553.7,6.43622]
[1744377155027,0.06423361,1554.0,1553.7,6.43609]
[1744377155236,6.62759361,1554.2,1553.8,6.43571]
[1744377155420,6.62759361,1554.2,1553.8,12.87142]
[1744377155617,6.62759361,1554.2,1553.8,7.18721]
[1744377155822,6.62759361,1554.2,1553.9,6.43528]
[1744377156019,6.43465,1554.1,1553.8,0.7515]
[1744377156225,0.06423361,1554.0,1553.7,6.43611]
[1744377156417,0.06423361,1554.0,1553.7,12.87218]
[1744377156623,6.49923361,1554.0,1553.7,6.43609]
[1744377156804,6.49923361,1554.0,1553.7,13.93907541]
[1744377157003,0.06423361,1554.0,1553.7,13.93907541]
[1744377157200,6.49944361,1554.0,1553.7,7.50298541]
[1744377157400,6.43652,1553.7,1553.4,11.21174025]
[1744377157642,6.56494,1553.8,1553.5,6.43704]
[1744377157822,0.06423361,1553.7,1553.5,3.0]
[1744377158006,6.50048361,1553.7,1553.5,3.0]
[1744377158407,6.43666,1553.6,1553.3,9.43775]
[1744377159038,6.50059361,1553.7,1553.3,9.43775]
[1744377159335,6.56495,1553.8,1553.5,6.43703]
[1744377159536,9.43375,1554.4,1553.6,6.43648]